bitfinex/quotes_ETHUSD_20250605
["timestamp","ask_amount","ask_price","bid_price","bid_amount"]
[1749160473283,41.584673,2430.1,2430.0,38.29186525]
[1749160474183,41.584673,2430.1,2430.0,39.21466125]
[1749160474422,41.584673,2430.1,2430.0,38.80284725]
[1749160474800,41.582673,2430.1,2430.0,38.80284725]
[1749160475078,41.582673,2430.1,2430.0,39.00576625]
[1749160475308,41.582673,2430.1,2430.0,37.86602925]
[1749160475713,41.581673,2430.1,2430.0,32.80449525]
[1749160475891,41.581673,2430.1,2430.0,35.83723525]
[1749160476091,41.581673,2430.1,2430.0,32.80449525]
[1749160476328,41.581673,2430.1,2430.0,36.80292225]
[1749160476515,41.581673,2430.1,2430.0,32.80449525]
[1749160477009,41.581673,2430.1,2430.0,35.41104225]
[1749160477204,41.581673,2430.1,2430.0,27.52426079]
[1749160477589,41.581673,2430.1,2430.0,32.80449525]
[1749160478223,41.581673,2430.1,2430.0,35.61116522]
[1749160479193,41.575673,2430.1,2430.0,38.64289022]
[1749160479529,41.575673,2430.1,2430.0,37.89384322]
[1749160479890,41.575673,2430.1,2430.0,35.61116522]
[1749160480203,33.560673,2430.1,2430.0,35.61116522]
[1749160480405,41.573673,2430.1,2430.0,35.61116522]
[1749160480718,41.573673,2430.1,2430.0,38.26182822]
[1749160481523,41.573673,2430.1,2430.0,35.61116522]
[1749160481915,41.573673,2430.1,2430.0,38.92772522]
[1749160482094,41.573673,2430.1,2430.0,35.61116522]
[1749160482303,41.573673,2430.1,2430.0,37.80883722]
[1749160482503,33.560673,2430.1,2430.0,37.80883722]
[1749160483042,27.66646716,2430.1,2430.0,40.34783722]
[1749160483208,9.93915941,2430.1,2430.0,40.34783722]
[1749160483391,1.572,2431.6,2431.5,4.11268764]
[1749160483597,5.28023446,2432.6,2432.3,4.11121483]
[1749160483598,1.5981,2432.4,2432.3,4.11121483]
[1749160483829,12.1451,2432.4,2432.3,4.11121483]
[1749160484291,12.1431,2432.4,2432.3,4.11121483]
[1749160485205,1.5981,2432.4,2432.3,4.11121483]
[1749160485703,9.6021,2432.4,2432.3,4.11121483]
[1749160486317,1.5981,2432.4,2432.3,4.11121483]
[1749160486630,1.5981,2432.4,2432.2,4.11147121]
[1749160486631,4.0974,2432.8,2432.7,4.11065893]
[1749160486830,12.1004,2432.8,2432.7,4.11065893]
[1749160487038,13.31044,2432.8,2432.7,4.11065893]
[1749160487538,13.27894,2432.8,2432.7,4.11065893]
[1749160487747,5.27594,2432.8,2432.7,4.11065893]
[1749160488041,12.0679,2432.8,2432.7,4.11065893]
[1749160489032,12.0649,2432.8,2432.7,4.11065893]
[1749160490928,10.537,2432.8,2432.7,4.11065893]
[1749160495518,10.526,2432.8,2432.7,4.11065893]
[1749160496551,1.638293,2433.9,2432.9,1.6289]
[1749160496776,5.67061183,2435.0,2432.7,0.15]
[1749160497006,5.6970639,2436.9,2435.2,0.2]
[1749160497290,31.57923892,2438.6,2435.0,4.10499571]
[1749160497292,0.0167985,2438.9,2438.8,4.65037723]
[1749160497457,3.457,2439.6,2438.5,20.10088168]
[1749160497458,3.25997999,2439.6,2439.5,19.37539143]
[1749160497807,3.25997999,2439.6,2439.3,4.09938154]
[1749160497808,3.25997999,2439.6,2438.9,4.10013788]
[1749160497809,12.98597799,2439.6,2438.9,4.10013788]
[1749160497982,12.98597799,2439.6,2439.5,4.09920065]
[1749160498163,3.58597799,2439.6,2439.5,0.95432944]
[1749160498489,13.05097799,2439.6,2439.5,4.09920065]
[1749160498687,3.58597799,2439.6,2439.5,5.04756827]
[1749160498989,3.58597799,2439.6,2439.5,6.6533746]
[1749160498990,12.69797999,2439.6,2439.5,6.6533746]
[1749160499387,12.69797999,2439.6,2439.5,5.04756827]
[1749160499575,3.25997999,2439.6,2439.5,5.04756827]
[1749160499754,12.68597999,2439.6,2439.5,5.04756827]
[1749160499950,12.68597999,2439.6,2439.5,6.22718758]
[1749160500189,13.95457799,2439.6,2439.5,6.22718758]
[1749160500493,13.93657799,2439.6,2439.5,6.22718758]
[1749160500890,13.93657799,2439.6,2439.5,5.04756827]
[1749160501082,4.52857799,2439.6,2439.5,5.04756827]
[1749160501390,12.65597999,2439.6,2439.5,5.04756827]
[1749160501692,12.64397999,2439.6,2439.5,5.04756827]
[1749160501989,12.64397999,2439.6,2439.4,16.0]
[1749160502189,12.64397999,2439.6,2439.4,4.09936869]
[1749160502190,8.872,2439.5,2439.4,4.09936869]
[1749160502363,8.872,2439.5,2438.9,16.0]
[1749160502691,1.5023,2439.3,2438.4,7.00440608]
[1749160502875,1.5023,2439.3,2439.1,4.09986977]
[1749160503076,1.5023,2439.3,2438.4,5.82478677]
[1749160503077,9.354,2439.2,2438.4,4.10095087]
[1749160503277,9.7193898,2439.2,2438.9,4.10006627]
[1749160503479,9.7193898,2439.2,2438.8,4.10035412]
[1749160503682,9.7193898,2439.2,2438.5,16.0]
[1749160503879,0.3653898,2439.2,2439.1,4.0998729]
[1749160504191,1.5023,2439.3,2439.2,4.09970482]
[1749160504545,10.3743,2439.3,2439.2,4.09970482]
[1749160504849,1.5023,2439.8,2439.6,4.09887042]
[1749160505045,12.316,2439.7,2439.6,4.09887042]
[1749160505245,13.69783,2439.7,2439.6,4.09887042]
[1749160505454,23.03083,2439.7,2439.6,4.09887042]
[1749160506349,23.01283,2439.7,2439.6,4.09887042]
[1749160506518,10.24983,2439.7,2439.6,4.09887042]
[1749160506836,23.00183,2439.7,2439.6,4.09887042]
[1749160507345,22.99583,2439.7,2439.6,4.09887042]
[1749160507647,13.69783,2439.7,2439.6,4.09887042]
[1749160507830,22.98383,2439.7,2439.6,4.09887042]
[1749160508358,12.315,2439.7,2439.6,4.09887042]
[1749160508567,21.589,2439.7,2439.6,4.09887042]
[1749160509038,12.315,2439.7,2439.6,4.09887042]
[1749160509219,21.567,2439.7,2439.6,4.09887042]
[1749160509619,8.868,2439.7,2439.6,20.64887042]
[1749160509842,21.556,2439.7,2439.6,20.64887042]
[1749160510348,2.30416667,2440.7,2440.3,4.09785682]
[1749160510547,22.2107,2440.4,2440.3,4.09785682]
[1749160510758,15.19977,2440.4,2440.3,4.09785682]
[1749160511048,24.42477,2440.4,2440.2,4.0978773]
[1749160511441,15.19977,2440.4,2440.3,4.09785682]
[1749160511623,24.41377,2440.4,2440.3,4.09785682]
[1749160511823,22.1867,2440.4,2440.3,4.09785682]
[1749160512023,9.5317,2440.4,2440.3,4.09785682]
[1749160512356,22.1807,2440.4,2440.3,4.09785682]
[1749160512527,12.9777,2440.4,2440.3,4.09785682]
[1749160512731,22.1697,2440.4,2440.3,4.09785682]
[1749160514053,22.1387,2440.4,2440.3,4.09785682]
[1749160514549,12.9777,2440.4,2440.3,4.09785682]
[1749160514725,22.1277,2440.4,2440.3,4.09785682]
[1749160515155,0.6667,2440.4,2440.3,20.64785682]
[1749160515323,4.0107,2440.4,2440.3,20.64785682]
[1749160515648,13.1477,2440.4,2440.3,20.64785682]
[1749160515857,0.19789506,2442.3,2441.5,1.5399]
[1749160516057,0.19789506,2442.3,2442.2,20.09466874]
[1749160516222,1.5924,2442.8,2442.4,4.09424458]
[1749160516419,1.5924,2442.8,2441.3,4.09602297]
[1749160516420,12.52,2442.7,2441.3,4.09602297]
[1749160516657,12.52,2442.7,2441.1,4.09651386]
[1749160516658,1.41124,2442.6,2441.1,4.09651386]
[1749160516962,1.41124,2442.6,2441.4,4.09591676]
[1749160516963,4.09480741,2442.2,2441.4,4.09591676]
[1749160517159,9.26648074,2442.1,2441.0,0.55]
[1749160517320,12.507,2442.0,2441.5,4.09573281]
[1749160517522,3.343,2442.0,2441.7,4.09547591]
[1749160517847,9.158,2441.9,2441.6,4.09562606]
[1749160518050,9.158,2441.9,2441.2,4.09634605]
[1749160518355,3.343,2442.0,2441.7,4.09548802]
[1749160518356,10.3961,2441.8,2441.7,4.09548802]
[1749160518555,1.2501,2441.8,2441.7,4.09550722]
[1749160518756,12.479,2441.8,2441.7,4.09550722]
[1749160520851,12.479,2441.8,2441.1,0.55]
[1749160520852,14.0987,2441.8,2441.3,4.0960183]
[1749160521045,1.40987,2441.7,2441.3,4.0960183]
[1749160521358,1.40987,2441.7,2441.5,4.09583377]
[1749160521565,1.40987,2441.7,2441.6,4.09567496]
[1749160521765,4.9627,2441.8,2441.6,4.09561989]
[1749160521950,9.079,2441.7,2441.6,4.09561989]
[1749160523133,9.079,2441.7,2441.0,4.64663882]
[1749160523134,9.079,2441.7,2441.1,4.09651386]
[1749160523552,9.079,2441.7,2441.6,4.09567496]
[1749160524381,4.9627,2441.8,2441.6,4.09567496]
[1749160524382,4.9627,2441.8,2441.7,4.09550722]
[1749160524586,14.37116606,2441.8,2441.7,5.26481718]
[1749160524886,15.8081569,2441.8,2441.7,5.26482427]
[1749160525188,15.8081701,2441.8,2441.7,4.09550722]
[1749160525565,15.8081701,2441.8,2441.7,6.20490075]
[1749160525759,15.42881661,2441.8,2441.7,6.20490075]
[1749160525987,15.42881661,2441.8,2441.7,5.04548122]
[1749160526171,15.80815603,2441.8,2441.7,5.04548122]
[1749160526484,12.49392351,2441.8,2441.7,8.4821176]
[1749160526693,12.24,2441.8,2441.7,5.27050493]
[1749160527013,3.244,2441.8,2441.7,8.46956845]
[1749160527163,3.244,2441.8,2441.7,8.46959663]
[1749160527364,9.26648074,2442.1,2442.0,4.09500409]
[1749160527365,8.857,2442.1,2442.0,4.09500409]
[1749160527587,21.077,2442.1,2442.0,5.04497809]
[1749160527789,12.101,2442.1,2442.0,23.66846282]
[1749160527964,21.071,2442.1,2442.0,21.59497809]
[1749160528162,21.066,2442.1,2442.0,25.01789723]
[1749160528364,21.066,2442.1,2442.0,21.81958871]
[1749160528565,21.066,2442.1,2442.0,21.81970019]
[1749160528872,23.1726,2442.1,2442.0,1.1746906]
[1749160529077,23.1726,2442.1,2442.0,0.949974]
[1749160529389,23.1726,2442.1,2441.9,5.29465027]
[1749160529390,23.1726,2442.1,2441.7,4.09542129]
[1749160529692,23.1726,2442.1,2441.6,4.09565438]
[1749160529693,1.6431,2442.0,2441.6,4.09565438]
[1749160529899,3.96036,2442.0,2441.5,4.0957187]
[1749160530103,3.96036,2442.0,2441.6,0.95999515]
[1749160530274,3.96036,2442.0,2441.6,5.05557982]
[1749160530598,2.502636,2441.9,2441.5,4.09579997]
[1749160530796,8.935,2441.8,2441.5,4.09579997]
[1749160531197,8.935,2441.8,2441.6,4.09566571]
[1749160531604,8.935,2441.8,2441.1,1.19950299]
[1749160531804,1.1437636,2441.7,2441.2,5.05614116]
[1749160532099,1.1437636,2441.7,2441.2,4.09618147]
[1749160532305,1.1437636,2441.7,2441.3,4.09615747]
[1749160533371,1.1437636,2441.7,2441.4,0.96198596]
[1749160533600,1.00787636,2441.6,2441.4,4.09600144]
[1749160533799,1.00787636,2441.6,2441.3,4.0960913]
[1749160534004,1.00787636,2441.6,2441.4,0.96231894]
[1749160534203,1.00787636,2441.6,2441.3,4.0960913]
[1749160534367,1.00787636,2441.6,2441.2,4.09618147]
[1749160534368,1.00787636,2441.6,2441.4,5.05815598]
[1749160534702,1.1437636,2441.7,2441.5,4.09584271]
[1749160534902,1.1437636,2441.7,2441.0,5.6955843]
[1749160534903,2.502636,2441.9,2441.7,4.09550722]
[1749160535063,3.132,2441.8,2441.7,4.09550722]
[1749160535265,11.981,2441.8,2441.7,0.96259008]
[1749160536400,1.6431,2442.0,2441.9,4.09517179]
[1749160536602,11.984,2442.0,2441.9,5.05776187]
[1749160536804,11.984,2442.0,2441.9,6.25726486]
[1749160537000,11.984,2442.0,2441.9,6.4835068]
[1749160537187,20.815,2442.0,2441.9,6.4835068]
[1749160537390,11.984,2442.0,2441.9,5.05776187]
[1749160537600,20.81,2442.0,2441.9,6.65668862]
[1749160538306,20.81,2442.0,2441.9,21.60776187]
[1749160538307,20.794,2442.0,2441.9,21.60776187]
[1749160539404,20.779,2442.0,2441.9,24.00550278]
[1749160539609,20.774,2442.0,2441.9,24.00550278]
[1749160539807,11.984,2442.0,2441.9,24.00550278]
[1749160540007,20.769,2442.0,2441.9,24.00550278]
[1749160540979,11.984,2442.0,2441.9,24.00550278]
[1749160541176,20.749,2442.0,2441.9,24.00550278]
[1749160541380,20.749,2442.0,2441.9,21.60776187]
[1749160541704,20.749,2442.0,2441.9,24.02225061]
[1749160541907,20.749,2442.0,2441.9,21.60776187]
[1749160542089,20.749,2442.0,2441.9,24.02263245]
[1749160542294,20.749,2442.0,2441.9,21.60776187]
[1749160542816,20.749,2442.0,2441.9,5.05776187]
[1749160543024,22.8239,2442.0,2441.9,6.66899281]
[1749160543182,8.852,2442.0,2441.9,6.66899281]
[1749160543386,20.621,2442.0,2441.9,7.47460828]
[1749160543711,20.621,2442.0,2441.9,5.05776187]
[1749160543902,20.621,2442.0,2441.9,7.47460828]
[1749160544610,20.621,2442.0,2441.9,7.47730423]
[1749160545195,20.621,2442.0,2441.9,5.05776187]
[1749160545397,11.891,2442.0,2441.9,5.05776187]
[1749160545583,20.582,2442.0,2441.9,5.05776187]
[1749160546707,20.582,2442.0,2441.9,7.48042268]
[1749160547107,11.891,2442.0,2441.9,7.48042268]
[1749160547316,20.558,2442.0,2441.9,7.48042268]
[1749160547818,20.558,2442.0,2441.9,6.5178326]
[1749160548718,20.558,2442.0,2441.9,4.09517179]
[1749160548882,20.53,2442.0,2441.9,22.24747179]
[1749160549091,20.53,2442.0,2441.9,20.64517179]
[1749160549418,20.53,2442.0,2441.9,22.51993441]
[1749160549715,20.53,2442.0,2441.9,4.09517179]
[1749160550080,20.53,2442.0,2441.9,5.71199331]
[1749160550396,20.53,2442.0,2441.9,5.30780386]
[1749160550397,22.583,2442.0,2441.9,5.30780386]
[1749160550600,22.583,2442.0,2441.9,4.09517179]
[1749160550924,22.96510743,2442.0,2441.9,4.09517179]
[1749160551222,22.96510787,2442.0,2441.9,4.09517179]
[1749160551396,20.91210787,2442.0,2441.9,4.09517179]
[1749160551599,20.9122117,2442.0,2441.9,4.09517179]
[1749160551779,20.53,2442.0,2441.9,4.09517179]
[1749160552217,20.91220933,2442.0,2441.9,4.09517179]
[1749160552415,20.53,2442.0,2441.9,4.09517179]
[1749160552594,20.91221283,2442.0,2441.9,4.09517179]
[1749160553218,20.91221435,2442.0,2441.9,4.09517179]
[1749160553420,1.6321,2441.9,2441.4,1.21263207]
[1749160553596,1.6321,2441.9,2441.2,1.61682152]
[1749160553597,8.571,2441.8,2441.2,1.21263207]
[1749160553795,0.38238913,2441.7,2441.3,4.09610737]
[1749160554000,1.6321,2441.5,2441.1,5.30907516]
[1749160554200,8.568,2441.4,2441.1,4.09644309]
[1749160554397,1.40241406,2441.3,2441.1,4.09644309]
[1749160554600,11.493,2441.2,2441.1,4.09644309]
[1749160555022,11.493,2441.2,2441.1,4.09651386]
[1749160555221,1.6321,2441.5,2441.4,4.09601048]
[1749160555421,11.48,2441.5,2441.4,5.30864255]
[1749160555621,11.48,2441.5,2441.4,4.09601048]
[1749160556136,11.47,2441.5,2441.4,4.09601048]
[1749160557488,1.6321,2441.9,2441.8,4.0953395]
[1749160557686,11.449,2441.9,2441.8,4.0953395]
[1749160558322,8.852,2442.0,2441.9,4.09517179]
[1749160558521,20.291,2442.0,2441.9,4.09517179]
[1749160559820,20.273,2442.0,2441.9,4.09517179]
[1749160566725,22.46499,2442.0,2441.5,5.30746336]
[1749160566911,22.46499,2442.0,2441.6,5.30734336]
[1749160567232,22.46499,2442.0,2441.8,4.09529916]
[1749160567598,22.46499,2442.0,2441.8,4.09533798]
[1749160567826,2.246499,2441.9,2441.8,4.09533798]
[1749160568026,2.246499,2441.9,2441.7,4.09549211]
[1749160568226,8.377,2441.8,2441.7,4.09549211]
[1749160568429,8.377,2441.8,2440.7,16.0]
[1749160568430,10.6176499,2441.8,2441.0,1.6312]
[1749160568706,10.6176499,2441.8,2441.6,4.09564212]
[1749160569917,10.6176499,2441.8,2441.7,4.09550722]
[1749160570319,10.6176499,2441.8,2441.5,4.09574293]
[1749160570549,1.06176499,2441.7,2441.4,4.09591299]
[1749160570711,1.5498,2441.6,2441.4,4.09592386]
[1749160570907,8.336,2441.5,2441.4,4.09592386]
[1749160571106,9.29549169,2441.5,2441.4,4.09592386]
[1749160571627,9.29549169,2441.5,2441.3,4.09608522]
[1749160571816,9.29549169,2441.5,2441.1,4.09651386]
[1749160571817,9.29549169,2441.5,2441.1,4.09641443]
[1749160573012,9.29549169,2441.5,2441.2,4.09627961]
[1749160573319,9.29549169,2441.5,2441.1,4.09646164]
[1749160573320,1.08452917,2441.4,2441.1,4.09646164]
[1749160573628,2.745,2441.3,2441.1,4.09642545]
[1749160573828,8.298,2441.2,2441.0,4.0965836]
[1749160574144,9.51075292,2441.2,2440.7,4.09705742]
[1749160574345,9.51075292,2441.2,2440.8,4.09694773]
[1749160574647,1.6562,2441.1,2440.6,4.09718941]
[1749160574845,1.6562,2441.1,2440.6,4.09719315]
[1749160574846,2.88177529,2441.1,2440.6,4.09719315]
[1749160575149,2.88177529,2441.1,2440.2,1.2104098]
[1749160575442,1.5334,2440.4,2439.9,4.09845732]
[1749160575644,19.89,2440.3,2440.2,4.09802475]
[1749160575937,19.886,2440.3,2440.2,4.09802475]
[1749160576547,19.886,2440.3,2439.6,4.09892896]
[1749160576716,22.02794,2440.3,2440.1,4.09816038]
[1749160578244,22.02794,2440.3,2439.3,6.82623606]
[1749160578449,26.12581335,2440.3,2439.8,4.09861346]
[1749160579110,26.12581335,2440.3,2439.9,4.09852494]
[1749160579111,22.02794,2440.3,2439.9,4.09852494]
[1749160579310,2.356134,2440.2,2439.9,4.09838405]
[1749160580547,2.356134,2440.2,2439.9,4.09843941]
[1749160580943,2.356134,2440.2,2439.8,4.09860609]
[1749160582030,19.886,2440.3,2439.2,4.09970127]
[1749160582231,11.597,2440.3,2440.2,4.09802475]
[1749160582542,19.805,2440.3,2440.2,4.09802475]
[1749160582747,22.77014362,2440.3,2440.2,4.09802475]
[1749160583512,22.77014362,2440.3,2439.6,1.579]
[1749160583746,26.8680236,2440.3,2439.8,4.09854735]
[1749160583946,4.09804514,2440.2,2439.8,4.09854735]
[1749160584443,4.0981169,2440.2,2439.7,4.09884652]
[1749160584650,4.00183068,2440.1,2439.7,4.09884652]
[1749160585055,4.00183068,2440.1,2439.8,4.09867607]
[1749160586147,4.00183068,2440.1,2439.9,4.0985237]
[1749160586720,4.00183068,2440.1,2439.8,4.09857108]
[1749160586921,4.00183068,2440.1,2439.9,4.09850121]
[1749160587120,0.40018307,2440.0,2439.9,4.09850121]
[1749160587340,0.40018307,2440.0,2439.6,4.09902729]
[1749160587548,8.151,2439.9,2439.7,4.09886378]
[1749160588053,8.151,2439.9,2439.7,4.09883374]
[1749160588252,1.6103,2439.8,2439.6,4.09888818]
[1749160588461,2.46541831,2439.8,2439.7,4.09886461]
[1749160590266,0.40018307,2440.0,2439.5,4.09920065]
[1749160590439,0.40018307,2440.0,2439.7,4.09886461]
[1749160590440,8.115,2439.8,2439.7,4.09886461]
[1749160591727,30.05653243,2439.8,2438.5,3.13143608]
[1749160591977,10.06923243,2439.4,2439.2,4.09961239]
[1749160592278,5.46565324,2439.7,2439.2,4.09970482]
[1749160592279,10.748,2439.3,2439.2,4.09970482]
[1749160592772,13.07488567,2439.7,2439.4,4.09926643]
[1749160592930,13.23871857,2439.6,2439.4,4.09926643]
[1749160593131,10.737,2439.5,2439.4,4.09926643]
[1749160593527,2.49471857,2439.6,2439.4,4.09926643]
[1749160593749,10.73,2439.5,2439.4,4.09926643]
[1749160595258,10.723,2439.5,2439.4,4.09926643]
[1749160595646,2.65,2439.5,2439.4,4.09926643]
[1749160595949,10.723,2439.5,2439.4,4.09926643]
[1749160597853,20.79223243,2439.5,2438.5,1.5126]
[1749160598055,1.0723,2439.4,2439.1,4.09975662]
[1749160598632,1.0723,2439.4,2439.2,4.0997016]
[1749160599272,2.18645324,2439.3,2439.2,4.0997016]
[1749160601474,2.18645324,2439.3,2439.1,4.09976836]
[1749160602371,2.18645324,2439.3,2438.7,4.10052823]
[1749160602673,2.18645324,2439.3,2439.2,4.09970482]
[1749160602971,1.0723,2439.4,2439.2,4.09970482]
[1749160603366,8.859,2439.3,2439.1,4.09978576]
[1749160603735,8.859,2439.3,2439.2,4.09970482]
[1749160604073,11.51,2439.3,2439.2,4.09970482]
[1749160604275,19.584,2439.3,2439.2,4.09970482]
[1749160614812,19.581,2439.3,2439.2,4.09970482]
[1749160615175,8.859,2439.3,2439.2,22.30610482]
[1749160615516,13.64491997,2440.4,2440.1,5.75459269]
[1749160615517,2.651,2440.2,2440.1,5.75459269]
[1749160615875,10.722,2440.2,2440.1,5.75459269]
[1749160616279,2.651,2440.2,2440.1,21.75459269]
[1749160616496,10.721,2440.2,2440.1,21.75459269]
[1749160617188,2.651,2440.2,2440.1,22.30459269]
[1749160617397,17.96923243,2441.3,2441.2,4.09634605]
[1749160617398,7.9,2441.3,2441.2,4.09634605]
[1749160617715,16.76,2441.4,2441.3,4.09617826]
[1749160617893,8.86,2441.4,2441.3,4.09617826]
[1749160618218,19.518,2441.4,2441.3,4.09617826]
[1749160618612,21.4698,2441.4,2441.0,4.09661582]
[1749160618801,21.4698,2441.4,2440.9,5.6914098]
[1749160618802,31.53903243,2441.4,2440.9,5.6914098]
[1749160618989,3.30472324,2441.3,2440.9,5.69133895]
[1749160619182,3.30472324,2441.3,2440.9,4.09669987]
[1749160620016,3.30472324,2441.3,2440.7,4.09714067]
[1749160620017,3.30472324,2441.3,2441.0,4.09667014]
[1749160620181,10.655,2441.2,2440.9,4.09681697]
[1749160620381,10.655,2441.2,2440.9,4.09679145]
[1749160620787,10.655,2441.2,2440.8,4.09686557]
[1749160620985,12.75394846,2441.2,2440.8,4.09686557]
[1749160621217,12.75394846,2441.2,2440.7,4.09716819]
[1749160621407,12.75394846,2441.2,2440.8,4.09700921]
[1749160621618,12.75394846,2441.2,2440.6,4.09735003]
[1749160621619,26.91953896,2441.2,2440.7,4.09713267]
[1749160621794,2.01549787,2441.1,2440.7,4.09709088]
[1749160621998,2.01549787,2441.1,2440.6,4.09730078]
[1749160621999,6.112121,2441.1,2440.6,4.09730078]
[1749160622401,2.01549787,2441.1,2440.7,4.09712852]
[1749160622608,2.01549787,2441.1,2440.6,4.09730078]
[1749160622609,3.04505773,2441.0,2440.6,4.09728535]
[1749160622919,4.0970227,2440.8,2440.1,17.5028]
[1749160623121,18.13523243,2440.9,2440.3,16.0]
[1749160623308,18.13523243,2440.9,2440.4,4.09766161]
[1749160623309,22.23215927,2440.9,2440.4,4.09766161]
[1749160623512,2.93739641,2440.8,2440.4,4.09766161]
[1749160624200,2.93739641,2440.8,2440.3,20.09775246]
[1749160624201,2.93739641,2440.8,2440.5,4.09751729]
[1749160624387,2.93739641,2440.8,2440.4,4.09762469]
[1749160624583,7.03443561,2440.8,2440.3,4.09783352]
[1749160624788,4.09760037,2440.5,2439.8,1.5028]
[1749160625004,14.74878628,2440.4,2439.9,4.09847413]
[1749160625697,4.09788502,2440.3,2439.9,4.09847413]
[1749160625909,14.7487571,2440.4,2439.9,4.09847413]
[1749160626436,10.06923243,2440.3,2439.8,1.5028]
[1749160626604,4.09832681,2440.1,2439.6,4.09902078]
[1749160626942,4.09832681,2440.1,2439.1,1.6148]
[1749160626943,1.5993,2439.9,2439.1,1.6148]
[1749160627086,10.06923243,2439.7,2439.1,5.71454208]
[1749160627287,10.649,2439.6,2439.1,1.6148]
[1749160627517,14.74804592,2439.6,2439.1,1.6148]
[1749160627724,14.74804592,2439.6,2439.1,5.71458711]
[1749160627934,17.63968699,2439.6,2438.8,5.71513307]
[1749160628528,4.09939822,2439.4,2438.9,4.10012054]
[1749160629125,4.09922384,2439.5,2438.9,4.10012054]
[1749160629299,3.18082155,2439.5,2439.0,4.0999019]
[1749160629485,7.28004666,2439.5,2439.0,4.0999019]
[1749160631334,4.09938557,2439.4,2439.0,4.0999019]
[1749160631531,3.18082155,2439.5,2439.0,4.0999019]
[1749160631532,7.28009928,2439.5,2439.0,4.0999019]
[1749160632423,7.28009928,2439.5,2438.9,4.10020632]
[1749160632424,3.18082155,2439.5,2439.1,4.09974547]
[1749160632730,10.649,2439.4,2439.1,4.09974547]
[1749160633818,10.649,2439.4,2439.0,4.0999633]
[1749160634012,10.649,2439.4,2439.1,4.0998674]
[1749160634937,2.588,2439.4,2439.3,4.09953675]
[1749160635145,10.648,2439.4,2439.3,4.09953675]
[1749160636275,2.588,2439.4,2439.3,4.09953675]
[1749160636481,10.648,2439.4,2439.3,4.09953675]
[1749160637240,2.588,2439.4,2439.3,4.09953675]
[1749160637632,10.647,2439.4,2439.3,4.09953675]
[1749160638980,10.646,2439.4,2439.3,4.09953675]
[1749160641647,10.446,2439.4,2439.3,4.09953675]
[1749160643977,4.51504093,2440.1,2438.9,16.0]
[1749160643978,1.22621336,2441.1,2439.5,0.55]
[1749160644135,1.63258273,2441.2,2439.9,4.09838578]
[1749160644136,8.33987961,2441.0,2439.9,4.09838578]
[1749160644342,10.06923243,2440.6,2439.7,1.6392]
[1749160644579,8.054,2440.5,2440.0,4.09822343]
[1749160644777,4.40032324,2440.4,2440.0,4.09822343]
[1749160645786,13.25932324,2440.4,2440.1,4.09808721]
[1749160647237,8.052,2440.3,2439.8,4.09866683]
[1749160647437,8.052,2440.3,2439.7,5.73805765]
[1749160647438,8.052,2440.3,2440.0,4.0982065]
[1749160647973,8.052,2440.3,2440.1,4.09803057]
[1749160648386,11.447,2440.4,2440.3,4.09785682]
[1749160648604,19.498,2440.4,2440.3,4.09785682]
[1749160649877,19.497,2440.4,2440.3,4.09785682]
[1749160650077,19.497,2440.4,2440.2,4.09794061]
[1749160653277,21.4467,2440.4,2440.1,4.09819104]
[1749160655271,21.4467,2440.4,2440.2,4.09799866]
[1749160655476,11.447,2440.4,2440.3,4.09785682]
[1749160655664,11.447,2440.4,2440.3,5.66125682]
[1749160655869,19.491,2440.4,2440.3,5.66125682]
[1749160661271,11.447,2440.4,2440.3,5.66125682]
[1749160661475,19.485,2440.4,2440.3,5.66125682]
[1749160663910,19.485,2440.4,2440.3,4.09785682]
[1749160667706,19.479,2440.4,2440.3,4.09785682]
[1749160669273,19.479,2440.4,2440.2,4.09793815]
[1749160669474,19.479,2440.4,2440.3,4.09785682]
[1749160671007,19.479,2440.4,2439.3,4.09941274]
[1749160671008,21.4269,2440.4,2440.1,4.0980964]
[1749160671304,25.52465178,2440.4,2439.9,4.0983694]
[1749160671506,25.52465178,2440.4,2439.7,1.5474]
[1749160671507,5.24159144,2440.3,2440.0,4.09826562]
[1749160671717,5.24159144,2440.3,2440.1,4.09819269]
[1749160671718,8.029,2440.2,2440.1,4.09819269]
[1749160672275,8.029,2440.2,2440.0,4.0982711]
[1749160672577,12.12705593,2440.2,2439.4,1.5474]
[1749160672787,5.24159144,2439.9,2439.5,4.09905183]
[1749160673020,8.028,2439.8,2439.5,4.09905183]
[1749160673199,2.576,2439.7,2439.5,4.09905183]
[1749160673609,2.576,2439.7,2439.6,4.09903262]
[1749160676949,3.2272605,2439.7,2439.6,4.09903262]
[1749160677820,3.2272605,2439.7,2439.4,4.09928864]
[1749160678016,3.2272605,2439.7,2439.5,4.09915399]
[1749160678243,3.2272605,2439.7,2439.6,4.09903262]
[1749160678655,3.2272605,2439.7,2439.5,4.09913627]
[1749160679010,3.2272605,2439.7,2439.6,4.09903262]
[1749160679211,3.2272605,2439.7,2439.5,4.09913499]
[1749160680014,3.2272605,2439.7,2439.4,4.09926701]
[1749160680328,3.2272605,2439.7,2439.5,4.0991826]
[1749160681229,3.2272605,2439.7,2439.4,4.09926902]
[1749160681555,3.2272605,2439.7,2439.5,4.09919964]
[1749160681743,3.2272605,2439.7,2439.4,4.09922603]
[1749160681942,3.2272605,2439.7,2439.5,4.09918083]
[1749160682144,8.019,2439.6,2439.5,4.09918083]
[1749160684428,3.2272605,2439.7,2439.6,4.09903262]
[1749160684627,3.2272605,2439.7,2439.6,5.62563262]
[1749160684829,11.2432605,2439.7,2439.6,5.62563262]
[1749160685028,3.2272605,2439.7,2439.6,21.62563262]
[1749160685240,11.2432605,2439.7,2439.6,21.62563262]
[1749160685753,0.6512605,2439.7,2439.6,21.62563262]
[1749160686067,8.6672605,2439.7,2439.6,21.62563262]
[1749160688664,0.6512605,2439.7,2439.6,22.17563262]
[1749160689217,8.6622605,2439.7,2439.6,22.17563262]
[1749160690229,0.6512605,2439.7,2439.6,22.17563262]
[1749160690535,8.6612605,2439.7,2439.6,22.17563262]
[1749160690768,0.6512605,2439.7,2439.6,22.17563262]
[1749160690938,8.6602605,2439.7,2439.6,22.17563262]
[1749160691556,0.6512605,2439.7,2439.6,22.17563262]
[1749160691760,8.6592605,2439.7,2439.6,22.17563262]
[1749160692926,0.6512605,2439.7,2439.6,22.17563262]